[Event "*** SCC Grand Prix: Titled Tuesday Blitz"]
[Site "Chess.com"]
[Date "2020.08.25"]
[Round "9"]
[White "pastouche06"]
[Black "GregShahade"]
[Result "1/2-1/2"]
[WhiteElo "2512"]
[BlackElo "2662"]
[TimeControl "180+1"]
[EndTime "11:48:26 PDT"]
[Termination "Game drawn - insufficient material"]

1. d4 {[%clk 0:03:00.9]} 1... Nf6 {[%clk 0:02:59.9]} 2. c4 {[%clk 0:03:00.9]}
2... g6 {[%clk 0:03:00.1]} 3. f3 {[%clk 0:03:00.7]} 3... Nc6 {[%clk 0:02:58.8]}
4. d5 {[%clk 0:03:00.1]} 4... Ne5 {[%clk 0:02:58.9]} 5. e4 {[%clk 0:03:00.6]}
5... d6 {[%clk 0:02:58.3]} 6. f4 {[%clk 0:02:52.9]} 6... Ned7 {[%clk 0:02:58.1]}
7. Nc3 {[%clk 0:02:52.7]} 7... Bg7 {[%clk 0:02:57.2]} 8. Nh3 {[%clk 0:02:50]}
8... O-O {[%clk 0:02:56.3]} 9. Be2 {[%clk 0:02:50.2]} 9... Nb6 {[%clk
0:02:54.2]} 10. Nf2 {[%clk 0:02:47.5]} 10... e6 {[%clk 0:02:54.4]} 11. O-O
{[%clk 0:02:45.2]} 11... exd5 {[%clk 0:02:54.8]} 12. cxd5 {[%clk 0:02:46.1]}
12... c6 {[%clk 0:02:55.3]} 13. dxc6 {[%clk 0:02:33.8]} 13... bxc6 {[%clk
0:02:56.2]} 14. Be3 {[%clk 0:02:34.3]} 14... Re8 {[%clk 0:02:49.9]} 15. Qd2
{[%clk 0:02:30.8]} 15... Be6 {[%clk 0:01:39.3]} 16. b3 {[%clk 0:02:21.3]} 16...
d5 {[%clk 0:01:33.8]} 17. e5 {[%clk 0:02:17.8]} 17... Nfd7 {[%clk 0:01:33.7]}
18. Na4 {[%clk 0:01:50.8]} 18... Nxa4 {[%clk 0:01:23.8]} 19. bxa4 {[%clk
0:01:49.5]} 19... f6 {[%clk 0:01:11.2]} 20. exf6 {[%clk 0:01:49.5]} 20... Qxf6
{[%clk 0:01:10]} 21. Rac1 {[%clk 0:01:46.9]} 21... d4 {[%clk 0:00:51.2]} 22. Ne4
{[%clk 0:01:41.7]} 22... Qf5 {[%clk 0:00:51.5]} 23. Bxd4 {[%clk 0:01:36.9]}
23... Qxe4 {[%clk 0:00:49.4]} 24. Bxg7 {[%clk 0:01:37]} 24... Kxg7 {[%clk
0:00:48.8]} 25. Bf3 {[%clk 0:01:37.4]} 25... Qf5 {[%clk 0:00:38.5]} 26. Bxc6
{[%clk 0:01:32.9]} 26... Rad8 {[%clk 0:00:37.8]} 27. Qd4+ {[%clk 0:01:28.4]}
27... Qf6 {[%clk 0:00:31.2]} 28. Qxa7 {[%clk 0:01:27.2]} 28... Re7 {[%clk
0:00:31.7]} 29. Qc7 {[%clk 0:01:07.4]} 29... Qd4+ {[%clk 0:00:24.2]} 30. Kh1
{[%clk 0:01:06.3]} 30... Qb6 {[%clk 0:00:24.7]} 31. Qd6 {[%clk 0:00:47.9]} 31...
Rde8 {[%clk 0:00:13.7]} 32. Rcd1 {[%clk 0:00:36.5]} 32... Qb8 {[%clk 0:00:10.8]}
33. Qd4+ {[%clk 0:00:35.6]} 33... Kg8 {[%clk 0:00:11]} 34. Rfe1 {[%clk
0:00:33.8]} 34... Rd8 {[%clk 0:00:08.5]} 35. Rxe6 {[%clk 0:00:30.1]} 35... Rxe6
{[%clk 0:00:09.4]} 36. Bd5 {[%clk 0:00:30.6]} 36... Nf8 {[%clk 0:00:09.9]} 37.
Bxe6+ {[%clk 0:00:28.6]} 37... Nxe6 {[%clk 0:00:10.8]} 38. Qg1 {[%clk
0:00:26.2]} 38... Rxd1 {[%clk 0:00:11]} 39. Qxd1 {[%clk 0:00:27.1]} 39... Qxf4
{[%clk 0:00:10.8]} 40. a5 {[%clk 0:00:26.7]} 40... Qd4 {[%clk 0:00:10]} 41. Qxd4
{[%clk 0:00:22.9]} 41... Nxd4 {[%clk 0:00:10.3]} 42. a6 {[%clk 0:00:23.3]} 42...
Nc6 {[%clk 0:00:10.3]} 43. g4 {[%clk 0:00:17.2]} 43... Kf7 {[%clk 0:00:10]} 44.
Kg2 {[%clk 0:00:16.6]} 44... Ke6 {[%clk 0:00:10.4]} 45. Kf3 {[%clk 0:00:16.8]}
45... Ke5 {[%clk 0:00:10.7]} 46. Ke3 {[%clk 0:00:16.7]} 46... g5 {[%clk
0:00:11]} 47. Kd3 {[%clk 0:00:14.6]} 47... Nb4+ {[%clk 0:00:11.4]} 48. Kc4
{[%clk 0:00:13.6]} 48... Nxa6 {[%clk 0:00:12.3]} 49. Kb5 {[%clk 0:00:13.5]}
49... Nc7+ {[%clk 0:00:12.5]} 50. Kc6 {[%clk 0:00:13.1]} 50... Ne6 {[%clk
0:00:12.7]} 51. a4 {[%clk 0:00:12.7]} 51... Nd4+ {[%clk 0:00:13.1]} 52. Kc5
{[%clk 0:00:11.5]} 52... Ke4 {[%clk 0:00:12.8]} 53. Kc4 {[%clk 0:00:09.3]} 53...
Nc6 {[%clk 0:00:11.7]} 54. Kc5 {[%clk 0:00:09.3]} 54... Nd4 {[%clk 0:00:11.2]}
55. Kc4 {[%clk 0:00:09.3]} 55... Ke5 {[%clk 0:00:11.8]} 56. a5 {[%clk
0:00:07.4]} 56... Ne6 {[%clk 0:00:12.5]} 57. a6 {[%clk 0:00:06.6]} 57... Kd6
{[%clk 0:00:12.7]} 58. a7 {[%clk 0:00:05.2]} 58... Nc7 {[%clk 0:00:13.4]} 59.
Kd4 {[%clk 0:00:05.5]} 59... Nb5+ {[%clk 0:00:13.2]} 60. Ke4 {[%clk 0:00:05.5]}
60... Nxa7 {[%clk 0:00:13.4]} 61. Kf5 {[%clk 0:00:06]} 61... h6 {[%clk
0:00:13.4]} 62. Kg6 {[%clk 0:00:06.4]} 62... Ke6 {[%clk 0:00:13.6]} 63. Kxh6
{[%clk 0:00:06.3]} 63... Kf6 {[%clk 0:00:14]} 64. Kh5 {[%clk 0:00:06.2]} 64...
Nc6 {[%clk 0:00:14.6]} 65. h4 {[%clk 0:00:06.7]} 65... Ne5 {[%clk 0:00:15.3]}
66. hxg5+ {[%clk 0:00:06.5]} 66... Kg7 {[%clk 0:00:16.1]} 67. g6 {[%clk
0:00:06.6]} 67... Nxg6 {[%clk 0:00:15.4]} 68. g5 {[%clk 0:00:07.5]} 68... Ne5
{[%clk 0:00:15.6]} 69. Kh4 {[%clk 0:00:07.8]} 69... Kg6 {[%clk 0:00:15.8]} 70.
Kg3 {[%clk 0:00:08.7]} 70... Kxg5 {[%clk 0:00:16.4]} 1/2-1/2

[Event "*** SCC Grand Prix: Titled Tuesday Blitz"]
[Site "Chess.com"]
[Date "2020.08.25"]
[Round "9"]
[White "KyrgyzFighter"]
[Black "WinstonSilvakov"]
[Result "0-1"]
[WhiteElo "2295"]
[BlackElo "2143"]
[TimeControl "180+1"]
[EndTime "11:48:40 PDT"]
[Termination "WinstonSilvakov won by checkmate"]

1. c4 {[%clk 0:03:00.9]} 1... Nf6 {[%clk 0:03:00.9]} 2. Nc3 {[%clk 0:03:00]}
2... c5 {[%clk 0:02:58.4]} 3. d3 {[%clk 0:02:59.4]} 3... Nc6 {[%clk 0:02:57.9]}
4. g3 {[%clk 0:02:58.9]} 4... d6 {[%clk 0:02:58.1]} 5. Bg2 {[%clk 0:02:59.3]}
5... h5 {[%clk 0:02:54]} 6. h4 {[%clk 0:02:58.4]} 6... a6 {[%clk 0:02:51.2]} 7.
Nh3 {[%clk 0:02:56.5]} 7... Qc7 {[%clk 0:02:48.1]} 8. Nf4 {[%clk 0:02:53.8]}
8... e6 {[%clk 0:02:47.9]} 9. O-O {[%clk 0:02:52.5]} 9... Be7 {[%clk 0:02:45.9]}
10. a3 {[%clk 0:02:48.8]} 10... b6 {[%clk 0:02:43.3]} 11. Rb1 {[%clk 0:02:48.5]}
11... Bb7 {[%clk 0:02:41]} 12. b4 {[%clk 0:02:48.7]} 12... Ne5 {[%clk
0:02:39.6]} 13. e4 {[%clk 0:02:47.1]} 13... Nc6 {[%clk 0:02:29.8]} 14. bxc5
{[%clk 0:02:44.7]} 14... dxc5 {[%clk 0:02:26.6]} 15. Qb3 {[%clk 0:02:39]} 15...
Nd7 {[%clk 0:02:23.7]} 16. Be3 {[%clk 0:02:37.5]} 16... g5 {[%clk 0:02:21.4]}
17. hxg5 {[%clk 0:02:33.6]} 17... Bxg5 {[%clk 0:02:22.3]} 18. Nxe6 {[%clk
0:02:29.2]} 18... fxe6 {[%clk 0:02:18.6]} 19. Bxg5 {[%clk 0:02:28.1]} 19... Nd4
{[%clk 0:02:14.2]} 20. Qd1 {[%clk 0:02:24.4]} 20... Ne5 {[%clk 0:02:09.2]} 21.
Bf6 {[%clk 0:02:18.5]} 21... Rh6 {[%clk 0:01:58.2]} 22. Bxe5 {[%clk 0:02:16.3]}
22... Qxe5 {[%clk 0:01:59.1]} 23. Rxb6 {[%clk 0:02:16.7]} 23... O-O-O {[%clk
0:01:52.5]} 24. Qb1 {[%clk 0:01:57.2]} 24... Qc7 {[%clk 0:01:51]} 25. Na4 {[%clk
0:01:43.1]} 25... h4 {[%clk 0:01:44.9]} 26. Re1 {[%clk 0:00:58.9]} 26... hxg3
{[%clk 0:01:41.8]} 27. f3 {[%clk 0:00:52.3]} 27... Nxf3+ {[%clk 0:01:11.9]} 28.
Bxf3 {[%clk 0:00:48.6]} 28... g2 {[%clk 0:01:12.6]} 29. Bxg2 {[%clk 0:00:24.5]}
29... Qh2+ {[%clk 0:01:03]} 30. Kf2 {[%clk 0:00:19.6]} 30... Rf6+ {[%clk
0:00:56.5]} 31. Ke2 {[%clk 0:00:18.4]} 31... Qxg2+ {[%clk 0:00:49.4]} 32. Kd1
{[%clk 0:00:18.5]} 32... Bxe4 {[%clk 0:00:15.8]} 33. Rb8+ {[%clk 0:00:17.3]}
33... Kd7 {[%clk 0:00:15.2]} 34. Nxc5+ {[%clk 0:00:17.2]} 34... Ke7 {[%clk
0:00:13.7]} 35. Nxe4 {[%clk 0:00:17.3]} 35... Qf3+ {[%clk 0:00:12.7]} 36. Kc1
{[%clk 0:00:16.5]} 36... Qf4+ {[%clk 0:00:12.1]} 37. Kc2 {[%clk 0:00:14.2]}
37... Rxb8 {[%clk 0:00:10.6]} 38. Qxb8 {[%clk 0:00:13.8]} 38... Qxb8 {[%clk
0:00:09.6]} 39. Nxf6 {[%clk 0:00:13.9]} 39... Qh2+ {[%clk 0:00:08.4]} 40. Kc3
{[%clk 0:00:13.2]} 40... Kxf6 {[%clk 0:00:08.7]} 41. Rf1+ {[%clk 0:00:13]} 41...
Ke7 {[%clk 0:00:07.7]} 42. c5 {[%clk 0:00:12.6]} 42... Qe5+ {[%clk 0:00:07.3]}
43. Kc4 {[%clk 0:00:12.2]} 43... Qd5+ {[%clk 0:00:07.7]} 44. Kb4 {[%clk
0:00:11.8]} 44... Qxd3 {[%clk 0:00:07.9]} 45. Rc1 {[%clk 0:00:05.7]} 45... Qb5+
{[%clk 0:00:07.5]} 46. Kc3 {[%clk 0:00:06.1]} 46... Qxc5+ {[%clk 0:00:07.4]} 47.
Kb2 {[%clk 0:00:07]} 47... Qb5+ {[%clk 0:00:06.8]} 48. Ka2 {[%clk 0:00:05.9]}
48... e5 {[%clk 0:00:07.7]} 49. Rc2 {[%clk 0:00:05.6]} 49... e4 {[%clk
0:00:07.7]} 50. a4 {[%clk 0:00:05.8]} 50... Qd5+ {[%clk 0:00:07.2]} 51. Kb2
{[%clk 0:00:05.9]} 51... e3 {[%clk 0:00:08.1]} 52. Re2 {[%clk 0:00:05.6]} 52...
Qd3 {[%clk 0:00:07.8]} 53. Rxe3+ {[%clk 0:00:04.5]} 53... Qxe3 {[%clk
0:00:07.5]} 54. Ka2 {[%clk 0:00:05.4]} 54... Qc3 {[%clk 0:00:06.8]} 55. a5
{[%clk 0:00:05.1]} 55... Qxa5+ {[%clk 0:00:06.1]} 56. Kb1 {[%clk 0:00:06]} 56...
Qd2 {[%clk 0:00:05.8]} 57. Ka1 {[%clk 0:00:05.7]} 57... Kd6 {[%clk 0:00:06.7]}
58. Kb1 {[%clk 0:00:06]} 58... Kc5 {[%clk 0:00:07.6]} 59. Ka1 {[%clk 0:00:06.9]}
59... Kb4 {[%clk 0:00:08.5]} 60. Kb1 {[%clk 0:00:07.8]} 60... Kb3 {[%clk
0:00:09.2]} 61. Ka1 {[%clk 0:00:08.7]} 61... Qa2# {[%clk 0:00:08.6]} 0-1

[Event "*** SCC Grand Prix: Titled Tuesday Blitz"]
[Site "Chess.com"]
[Date "2020.08.25"]
[Round "9"]
[White "Chernobay_Artem"]
[Black "Kassimov_B"]
[Result "1/2-1/2"]
[WhiteElo "2571"]
[BlackElo "2448"]
[TimeControl "180+1"]
[EndTime "11:48:46 PDT"]
[Termination "Game drawn by stalemate"]

1. d4 {[%clk 0:03:00.9]} 1... Nf6 {[%clk 0:02:59.6]} 2. c4 {[%clk 0:03:01.2]}
2... b6 {[%clk 0:02:59.5]} 3. Nc3 {[%clk 0:02:48]} 3... Bb7 {[%clk 0:02:58.6]}
4. f3 {[%clk 0:02:45.9]} 4... Nc6 {[%clk 0:02:57.4]} 5. d5 {[%clk 0:02:33.7]}
5... Ne5 {[%clk 0:02:55.6]} 6. e4 {[%clk 0:02:34]} 6... e6 {[%clk 0:02:55.2]} 7.
f4 {[%clk 0:02:26.8]} 7... Ng6 {[%clk 0:02:54.9]} 8. Nf3 {[%clk 0:02:16.1]} 8...
Bb4 {[%clk 0:02:53.9]} 9. Bd3 {[%clk 0:02:15.1]} 9... O-O {[%clk 0:02:50]} 10.
O-O {[%clk 0:02:14.1]} 10... e5 {[%clk 0:02:38]} 11. f5 {[%clk 0:02:08.1]} 11...
Nf4 {[%clk 0:02:32.5]} 12. Nxe5 {[%clk 0:02:04.1]} 12... Nxd3 {[%clk 0:02:30.6]}
13. Qxd3 {[%clk 0:01:56.6]} 13... d6 {[%clk 0:02:27.2]} 14. Nf3 {[%clk 0:01:55]}
14... Bxc3 {[%clk 0:02:24.1]} 15. bxc3 {[%clk 0:01:54.4]} 15... h6 {[%clk
0:02:16.8]} 16. Bf4 {[%clk 0:01:52.6]} 16... Re8 {[%clk 0:02:15.8]} 17. Rae1
{[%clk 0:01:51.8]} 17... Qd7 {[%clk 0:02:11.3]} 18. Qd4 {[%clk 0:01:38.2]} 18...
c5 {[%clk 0:01:54.2]} 19. dxc6 {[%clk 0:01:22.4]} 19... Qxc6 {[%clk 0:01:53.4]}
20. Bxh6 {[%clk 0:01:21.5]} 20... Rxe4 {[%clk 0:01:49.3]} 21. Rxe4 {[%clk
0:01:18.1]} 21... Qxe4 {[%clk 0:01:49.8]} 22. Bg5 {[%clk 0:01:14.8]} 22... Qxf5
{[%clk 0:01:43.1]} 23. Bxf6 {[%clk 0:00:51.9]} 23... Qxf6 {[%clk 0:01:43]} 24.
Qxf6 {[%clk 0:00:52.4]} 24... gxf6 {[%clk 0:01:43.9]} 25. Nd4 {[%clk 0:00:51.6]}
25... Rc8 {[%clk 0:01:43.4]} 26. Nb5 {[%clk 0:00:51.1]} 26... Rxc4 {[%clk
0:01:38.2]} 27. Nxd6 {[%clk 0:00:50.6]} 27... Rc7 {[%clk 0:01:37.6]} 28. Rxf6
{[%clk 0:00:49.6]} 28... Bd5 {[%clk 0:01:36.3]} 29. Nb5 {[%clk 0:00:45.5]} 29...
Re7 {[%clk 0:01:20.4]} 30. Nd4 {[%clk 0:00:15.3]} 30... Re1+ {[%clk 0:01:14.3]}
31. Kf2 {[%clk 0:00:15.7]} 31... Ra1 {[%clk 0:01:12.4]} 32. g4 {[%clk 0:00:12]}
32... Rxa2+ {[%clk 0:01:09.7]} 33. Kg3 {[%clk 0:00:12.5]} 33... Ra3 {[%clk
0:01:09.6]} 34. Nf5 {[%clk 0:00:11.5]} 34... Rxc3+ {[%clk 0:01:09]} 35. Kf4
{[%clk 0:00:11.7]} 35... Be6 {[%clk 0:01:05.7]} 36. Nd4 {[%clk 0:00:07.6]} 36...
Kg7 {[%clk 0:00:59]} 37. g5 {[%clk 0:00:06]} 37... Rc4 {[%clk 0:00:58.5]} 38.
Ke4 {[%clk 0:00:05]} 38... a5 {[%clk 0:00:54.5]} 39. h4 {[%clk 0:00:05.3]} 39...
a4 {[%clk 0:00:52.1]} 40. Kd3 {[%clk 0:00:05.5]} 40... Rb4 {[%clk 0:00:45.7]}
41. h5 {[%clk 0:00:05]} 41... a3 {[%clk 0:00:38.6]} 42. Nxe6+ {[%clk 0:00:04.6]}
42... fxe6 {[%clk 0:00:37.8]} 43. h6+ {[%clk 0:00:05.2]} 43... Kh7 {[%clk
0:00:37.2]} 44. Rf7+ {[%clk 0:00:05.8]} 44... Kg6 {[%clk 0:00:30.4]} 45. Rg7+
{[%clk 0:00:06.5]} 45... Kf5 {[%clk 0:00:29.3]} 46. h7 {[%clk 0:00:06.4]} 46...
Rh4 {[%clk 0:00:28.8]} 47. g6 {[%clk 0:00:05.6]} 47... a2 {[%clk 0:00:26.2]} 48.
Ra7 {[%clk 0:00:05.1]} 48... Kxg6 {[%clk 0:00:26.4]} 49. Rxa2 {[%clk 0:00:05.8]}
49... Rxh7 {[%clk 0:00:23.6]} 50. Ke4 {[%clk 0:00:04.9]} 50... Kf6 {[%clk
0:00:21.9]} 51. Rf2+ {[%clk 0:00:04.6]} 51... Ke7 {[%clk 0:00:22]} 52. Rb2
{[%clk 0:00:05.3]} 52... Rh4+ {[%clk 0:00:17.2]} 53. Ke3 {[%clk 0:00:05.4]}
53... Kf6 {[%clk 0:00:14.2]} 54. Rxb6 {[%clk 0:00:04.9]} 54... Kf5 {[%clk
0:00:14.5]} 55. Rb5+ {[%clk 0:00:05.3]} 55... e5 {[%clk 0:00:15]} 56. Ke2 {[%clk
0:00:04.8]} 56... Ra4 {[%clk 0:00:15.4]} 57. Rb3 {[%clk 0:00:04.4]} 57... Ke4
{[%clk 0:00:14.7]} 58. Ke1 {[%clk 0:00:04.6]} 58... Ra2 {[%clk 0:00:13.1]} 59.
Kd1 {[%clk 0:00:04.7]} 59... Kd4 {[%clk 0:00:13.1]} 60. Ke1 {[%clk 0:00:05]}
60... e4 {[%clk 0:00:13.2]} 61. Rh3 {[%clk 0:00:05]} 61... Rc2 {[%clk
0:00:11.4]} 62. Kd1 {[%clk 0:00:05.1]} 62... Rf2 {[%clk 0:00:11.3]} 63. Ke1
{[%clk 0:00:04.4]} 63... Rf3 {[%clk 0:00:11.8]} 64. Rxf3 {[%clk 0:00:04.3]}
64... exf3 {[%clk 0:00:12.2]} 65. Kf2 {[%clk 0:00:04.9]} 65... Ke4 {[%clk
0:00:12.8]} 66. Kf1 {[%clk 0:00:05.5]} 66... Ke3 {[%clk 0:00:12.8]} 67. Ke1
{[%clk 0:00:06.2]} 67... Kf4 {[%clk 0:00:13.7]} 68. Kf2 {[%clk 0:00:06.1]} 68...
Kg4 {[%clk 0:00:13.9]} 69. Kf1 {[%clk 0:00:06.6]} 69... Kg3 {[%clk 0:00:14.8]}
70. Kg1 {[%clk 0:00:06.9]} 70... f2+ {[%clk 0:00:15.3]} 71. Kf1 {[%clk 0:00:07]}
71... Kf3 {[%clk 0:00:16.2]} 1/2-1/2

[Event "*** SCC Grand Prix: Titled Tuesday Blitz"]
[Site "Chess.com"]
[Date "2020.08.25"]
[Round "9"]
[White "chesslh19"]
[Black "dpopadic"]
[Result "1/2-1/2"]
[WhiteElo "2215"]
[BlackElo "2351"]
[TimeControl "180+1"]
[EndTime "11:48:49 PDT"]
[Termination "Game drawn by repetition"]

1. e4 {[%clk 0:03:00.9]} 1... c5 {[%clk 0:02:58.9]} 2. Nf3 {[%clk 0:03:01.4]}
2... Nc6 {[%clk 0:02:58.6]} 3. d4 {[%clk 0:03:01.9]} 3... cxd4 {[%clk
0:02:58.6]} 4. Nxd4 {[%clk 0:03:02.8]} 4... Nf6 {[%clk 0:02:59]} 5. Nc3 {[%clk
0:03:03.1]} 5... e5 {[%clk 0:02:59.2]} 6. Ndb5 {[%clk 0:03:03.7]} 6... d6 {[%clk
0:02:58.9]} 7. Bg5 {[%clk 0:03:04.4]} 7... a6 {[%clk 0:02:58.8]} 8. Na3 {[%clk
0:03:04.9]} 8... b5 {[%clk 0:02:58.9]} 9. Bxf6 {[%clk 0:03:05.5]} 9... gxf6
{[%clk 0:02:58.7]} 10. Nd5 {[%clk 0:03:06.1]} 10... Bg7 {[%clk 0:02:59]} 11. c3
{[%clk 0:03:05.4]} 11... f5 {[%clk 0:02:58.8]} 12. exf5 {[%clk 0:03:05.6]} 12...
Bxf5 {[%clk 0:02:58.8]} 13. Nc2 {[%clk 0:03:06.3]} 13... O-O {[%clk 0:02:58.6]}
14. Nce3 {[%clk 0:03:06.6]} 14... Bd7 {[%clk 0:02:58.6]} 15. Bd3 {[%clk
0:03:07.3]} 15... f5 {[%clk 0:02:58.4]} 16. Qh5 {[%clk 0:03:04.1]} 16... e4
{[%clk 0:02:58.4]} 17. Bc2 {[%clk 0:03:03.9]} 17... Ne5 {[%clk 0:02:58.6]} 18.
O-O {[%clk 0:02:42.5]} 18... Ra7 {[%clk 0:02:51.7]} 19. Kh1 {[%clk 0:02:01]}
19... Be8 {[%clk 0:02:44.6]} 20. Qh3 {[%clk 0:01:39.3]} 20... Bd7 {[%clk
0:02:43.9]} 21. Qh5 {[%clk 0:01:38.6]} 21... Kh8 {[%clk 0:02:18.2]} 22. f4
{[%clk 0:01:29.3]} 22... exf3 {[%clk 0:02:17]} 23. gxf3 {[%clk 0:01:27.2]} 23...
Qe8 {[%clk 0:01:50]} 24. Qxe8 {[%clk 0:01:20.5]} 24... Bxe8 {[%clk 0:01:46.5]}
25. Bxf5 {[%clk 0:01:03.8]} 25... Bc6 {[%clk 0:01:43.9]} 26. Be4 {[%clk
0:00:56.3]} 26... Raf7 {[%clk 0:01:36.4]} 27. Kg2 {[%clk 0:00:37.5]} 27... Bh6
{[%clk 0:01:34]} 28. Ng4 {[%clk 0:00:28]} 28... Bg7 {[%clk 0:01:16.5]} 29. Nxe5
{[%clk 0:00:03.9]} 29... Bxe5 {[%clk 0:01:15.3]} 30. Kh1 {[%clk 0:00:04.3]}
30... a5 {[%clk 0:01:11.3]} 31. Rg1 {[%clk 0:00:04.5]} 31... b4 {[%clk
0:01:05.4]} 32. Rad1 {[%clk 0:00:03.5]} 32... bxc3 {[%clk 0:01:03.9]} 33. bxc3
{[%clk 0:00:04.4]} 33... Ba4 {[%clk 0:00:46.3]} 34. Rd2 {[%clk 0:00:03.9]} 34...
Bd7 {[%clk 0:00:40]} 35. c4 {[%clk 0:00:04]} 35... Be6 {[%clk 0:00:38.1]} 36.
Rdd1 {[%clk 0:00:03.4]} 36... Rb8 {[%clk 0:00:33]} 37. Rb1 {[%clk 0:00:03.5]}
37... Rfb7 {[%clk 0:00:25.2]} 38. Rxb7 {[%clk 0:00:02.9]} 38... Rxb7 {[%clk
0:00:25.5]} 39. Rb1 {[%clk 0:00:03.5]} 39... Rxb1+ {[%clk 0:00:23.8]} 40. Bxb1
{[%clk 0:00:04.1]} 40... Kg7 {[%clk 0:00:21.2]} 41. Be4 {[%clk 0:00:04.3]} 41...
h6 {[%clk 0:00:19.9]} 42. Kg2 {[%clk 0:00:04.8]} 42... a4 {[%clk 0:00:18.7]} 43.
Nb6 {[%clk 0:00:04.2]} 43... a3 {[%clk 0:00:16.2]} 44. Nd5 {[%clk 0:00:04.4]}
44... Bd7 {[%clk 0:00:14.6]} 45. h4 {[%clk 0:00:04.1]} 45... Ba4 {[%clk
0:00:12.9]} 46. Bb1 {[%clk 0:00:04.1]} 46... Bd7 {[%clk 0:00:08.4]} 47. h5
{[%clk 0:00:03.2]} 47... Bc8 {[%clk 0:00:08.1]} 48. f4 {[%clk 0:00:02.9]} 48...
Bd4 {[%clk 0:00:07.3]} 49. Kf3 {[%clk 0:00:03]} 49... Ba6 {[%clk 0:00:07.2]} 50.
Bd3 {[%clk 0:00:02]} 50... Bc8 {[%clk 0:00:06.3]} 51. Ke2 {[%clk 0:00:01.8]}
51... Bd7 {[%clk 0:00:05.6]} 52. Kd2 {[%clk 0:00:01.8]} 52... Be8 {[%clk
0:00:05.2]} 53. Be2 {[%clk 0:00:01.9]} 53... Bf7 {[%clk 0:00:03.4]} 54. Kc2
{[%clk 0:00:01.8]} 54... Bc5 {[%clk 0:00:03.4]} 55. Kb3 {[%clk 0:00:01.7]} 55...
Bxd5 {[%clk 0:00:03.2]} 56. cxd5 {[%clk 0:00:01.6]} 56... Kf6 {[%clk 0:00:03.7]}
57. Bd1 {[%clk 0:00:01.9]} 57... Kf5 {[%clk 0:00:03.6]} 58. Kc4 {[%clk
0:00:02.5]} 58... Kxf4 {[%clk 0:00:03.4]} 59. Bc2 {[%clk 0:00:03.1]} 59... Ke5
{[%clk 0:00:03.5]} 60. Bg6 {[%clk 0:00:03.1]} 60... Kf4 {[%clk 0:00:03.4]} 61.
Kb3 {[%clk 0:00:03.4]} 61... Ke3 {[%clk 0:00:03.6]} 62. Kc2 {[%clk 0:00:03.6]}
62... Kd4 {[%clk 0:00:03.9]} 63. Bf7 {[%clk 0:00:03.6]} 63... Ke5 {[%clk
0:00:04.2]} 64. Kb1 {[%clk 0:00:03.8]} 64... Kf5 {[%clk 0:00:04.4]} 65. Bg6+
{[%clk 0:00:04.1]} 65... Kg5 {[%clk 0:00:04.8]} 66. Bf7 {[%clk 0:00:04.7]} 66...
Kf4 {[%clk 0:00:05.5]} 67. Bg6 {[%clk 0:00:05]} 67... Ke5 {[%clk 0:00:06.2]} 68.
Bf7 {[%clk 0:00:05.4]} 68... Kd4 {[%clk 0:00:06.8]} 69. Be6 {[%clk 0:00:05.1]}
69... Ke5 {[%clk 0:00:06.8]} 70. Bf7 {[%clk 0:00:05.5]} 1/2-1/2